{"text_format":"1","workbook":"xlsx","n_sheets":4,"sheets":["お読みください","入力画面","出力画面","保存画面"],"not_rendered":{"charts":0,"images":0,"macros":1,"external_links":0,"defined_names":1,"comments":0,"pivot_tables":0},"unopened":[],"bounds":{"document_bytes":16777216,"sheet_cells":100000,"rows_first":2000,"rows_last":500,"rows_between":2000,"halvings":0,"cell_chars":16384,"cell_head_chars":4096},"cells_cut":0,"cells_raw":0,"read":"whole","date_system":"1900"}

{"sheet":"お読みください","index":0,"n_rows":27,"n_cols":2,"rows_kept":27,"cut":false,"hidden":false,"merged":[]}
["このファイルは、様式1報告を岡山県病院薬剤師会を通して日病薬に報告するためのものです。"]
["【入力画面】について"]
["項目を記載してください。"]
[null,"のセルは、フリーワードで入力できます。改行する際は、windowsの場合は「Alt+Enter」をお使いください。"]
[null,"のセルは、入力制限がかかっています。必要なものを選択してください。"]
[null,"のセルは、チェックボックスになっています。該当の際は、クリックしてください。"]
["赤文字の項目は入力必須の項目です。未記載な項目があればプレアボイド報告が行われません。注意してください。"]
["L列は、入力制限のためのキーワードです。この列は削除したり改変したりしないでください。"]
["入力が終わったら、「登録」ボタンを押ししてください。"]
["「登録」ボタンを押すと【保存画面】に登録されたのち、入力した項目が消えます。施設名や報告者氏名などはそのままです。報告者が変わるときは、修正してください。"]
["必須項目に関するエラーメッセージがでますので、問題がなければ「OK」を選んでください。"]
[]
["【出力画面】について"]
["エクセル処理用のシートです。何も作業はしないでください。"]
[]
["【保存画面】について"]
["「登録」されたプレアボイドが保存されます。"]
["岡山県病院薬剤師会には、このシート【保存画面】を報告することになります。"]
["入力画面で何も入力されていない場合には、「0」として表示されます。"]
["もし削除する場合は、このシート【保存画面】の行を直接選択して削除してください。"]
[]
["その他"]
["必要な箇所は、シートの保護がされています。"]
[]
["ご不明な点等ありましたら、"]
["oka-pre@okayama-u.ac.jp"]
["までご連絡ください"]

{"sheet":"入力画面","index":1,"n_rows":59,"n_cols":12,"rows_kept":59,"cut":false,"hidden":false,"merged":[[56,5,57,5],[56,6,57,9],[0,1,0,9],[2,7,2,8],[3,7,3,8],[21,4,21,6],[46,1,46,2],[28,1,28,2],[28,6,28,7],[29,1,29,2],[29,5,32,5],[29,6,29,7],[30,1,30,2],[30,6,30,7],[27,1,27,4],[5,8,6,9],[58,4,58,9],[22,4,22,6],[55,2,55,4],[56,2,56,4],[57,2,57,4],[53,2,53,3],[54,2,54,4],[31,6,31,7],[32,1,32,2],[32,6,32,7],[50,4,50,5],[51,4,51,5],[50,7,50,8],[31,1,31,2],[52,1,52,2],[52,3,52,9],[5,1,5,2],[6,1,6,2],[54,6,54,8],[24,8,24,9],[25,8,25,9],[7,5,8,6],[7,4,8,4],[5,4,6,6],[55,6,55,8],[51,7,51,8],[47,1,47,2],[35,4,47,9],[16,1,16,2],[17,1,17,2]]}
[null,"プレアボイド報告書（未然回避報告）　様式２（入力用）"]
[null,null,null,null,null,null,null,null,"Ver1.0",null,null,"男"]
[null,null,"年齢(年)","年齢(月)",null,"性別",null,"患者",null,null,null,"女"]
[]
[null,null,"↑歳代","↑１歳未満の場合",null,null,null,null,null,null,null,"外来患者"]
[null,"関与した薬剤師の担当",null,null,"発端(複数回答可）",null,null,null,"原因(複数回答可)",null,null,"入院患者"]
[null,"(複数回答可）"]
[null,null,"薬剤管理指導業務",null,null,"医薬品情報提供による患者(家族)の訴え・相談",null,null,null,"重大な副作用",null,false]
[null,null,"外来調剤",null,null,null,null,null,null,"禁忌",null,true]
[null,null,"注射せん調剤",null,null,"注射せん",null,null,null,"同種同効薬重複"]
[null,null,"医薬品情報",null,null,"医師からの相談",null,null,null,"併用注意",null,"内服"]
[null,null,"無菌製剤",null,null,"患者(家族)の訴え・相談",null,null,null,"特殊（腎機能低下等）な状況",null,"点滴"]
[null,null,"入院調剤",null,null,"検査結果",null,null,null,"処方もれ",null,"静注"]
[null,null,"製剤",null,null,"看護師からの相談",null,null,null,"その他の副作用",null,"持続静注"]
[null,null,"TDM",null,null,"薬歴",null,null,null,"慎重投与",null,"TPN"]
[null,null,"その他",null,null,"TDM",null,null,null,"過量投与",null,"筋注"]
[null,"その他薬剤師の担当",null,null,null,"持参薬チェック",null,null,null,"配合禁忌",null,"皮下注"]
[null,null,null,null,null,"処方せん",null,null,null,"ノンコンプライアンス",null,"坐薬"]
[null,null,null,null,null,"カルテ等情報",null,null,null,"中毒",null,"貼付"]
[null,null,null,null,null,"患者の症状その他",null,null,null,"重複投与",null,"点眼"]
[null,null,null,null,null,"その他",null,null,null,"併用禁忌",null,"経管栄養"]
[null,null,null,null,"その他発端",null,null,null,null,"配合注意",null,"その他"]
[null,null,null,null,null,null,null,null,null,"誤転記・誤処方"]
[null,null,null,null,null,null,null,null,null,"その他",null,"有"]
[null,null,null,null,null,null,null,null,"その他原因",null,null,"無"]
[]
[]
[null,"薬学的ケア前",null,null,null,null,null,null,"薬学的ケア後"]
[null,"薬剤名",null,"投与量","用法",null,"薬剤名",null,"投与量","用法"]
[null,null,null,null,null,"→"]
[]
[]
[]
[]
[null,"薬学的ケアの種類",null,null,"報告者のコメント"]
[null,null,"薬剤中止"]
[null,null,"薬剤減量"]
[null,null,"薬剤追加"]
[null,null,"調剤法変更"]
[null,null,"投与法変更"]
[null,null,"薬剤変更"]
[null,null,"薬剤増量"]
[null,null,"服薬指導"]
[null,null,"用法変更"]
[null,null,"剤形変更"]
[null,null,"その他"]
[null,"その他のケア"]
[]
[]
[null,"報告に関連する患者追加情報　※報告内容に関連する場合、可能な範囲でご記入下さい。"]
[null,"身長",null,null,"腎機能障害",null,null,"副作用歴"]
[null,"体重",null,null,"肝機能障害",null,null,"アレルギー歴"]
[null,"治療中の疾患　"]
[]
[null,"報告者氏名",null,null,null,"報告日",{"$f":"TODAY()","v":"2018-01-31"}]
[null,"TEL",null,null,null,"FAX"]
[null,"報告施設名",null,null,null,"備考、追加など"]
[null,"e-mail"]
[null,"都道府県",null,"住所"]

{"sheet":"出力画面","index":2,"n_rows":2,"n_cols":100,"rows_kept":2,"cut":false,"hidden":false,"merged":[]}
["施設名","都道府県","住所","電話番号","FAX番号","氏名","e-mail","初回登録日","最終更新日","年齢：年","年齢：月","性別","外来／入院","関与した薬剤師の担当：外来調剤","関与した薬剤師の担当：注射せん調剤","関与した薬剤師の担当：医薬品情報","関与した薬剤師の担当：無菌製剤","関与した薬剤師の担当：入院調剤","関与した薬剤師の担当：薬剤管理指導業務","関与した薬剤師の担当：製剤","関与した薬剤師の担当：TDM","関与した薬剤師の担当：その他","関与した薬剤師の担当：その他（内容）","発端：医薬品情報提供による患者（家族）の訴え・相談","発端：注射せん","発端：医師からの相談","発端：患者（家族）の訴え・相談","発端：検査結果","発端：看護師からの相談","発端：薬歴","発端：TDM","発端：持参薬チェック","発端：処方せん","発端：カルテ等情報","発端：患者の症状その他","発端：その他 ","発端：その他（内用）","原因：重大な副作用","原因：禁忌","原因：同種同効薬重複","原因：併用注意","原因：特殊（腎機能低下等）な状況","原因：処方もれ","原因：その他の副作用","原因：慎重投与","原因：過量投与","原因：配合禁忌","原因：ノンコンプライアンス","原因：中毒","原因：重複投与","原因：併用禁忌","原因：配合注意","原因：誤転記・誤処方","原因：その他","原因：その他（内用）","薬剤名1（薬学的ケア前）","投与量1（薬学的ケア前）","用法1（薬学的ケア前）","薬剤名1（薬学的ケア後）","投与量1（薬学的ケア後）","用法1（薬学的ケア後）","薬剤名2（薬学的ケア前）","投与量2（薬学的ケア前）","用法2（薬学的ケア前）","薬剤名2（薬学的ケア後）","投与量2（薬学的ケア後）","用法2（薬学的ケア後）","薬剤名3（薬学的ケア前）","投与量3（薬学的ケア前）","用法3（薬学的ケア前）","薬剤名3（薬学的ケア後）","投与量3（薬学的ケア後）","用法3（薬学的ケア後）","薬剤名4（薬学的ケア前）","投与量4（薬学的ケア前）","用法4（薬学的ケア前）","薬剤名4（薬学的ケア後）","投与量4（薬学的ケア後）","用法4（薬学的ケア後）","薬学的ケアの種類：薬剤中止","薬学的ケアの種類：薬剤減量","薬学的ケアの種類：薬剤追加","薬学的ケアの種類：調剤法変更","薬学的ケアの種類：投与法変更","薬学的ケアの種類：薬剤変更","薬学的ケアの種類：薬剤増量","薬学的ケアの種類：服薬指導","薬学的ケアの種類：用法変更","薬学的ケアの種類：剤形変更","薬学的ケアの種類：その他","薬学的ケアの種類：その他（内用）","報告者コメント","身長","体重","治療中の疾患","腎機能障害","副作用歴","肝機能障害","アレルギー歴","備考・追加など"]
[{"$f":"入力画面!C57","v":0},{"$f":"入力画面!C59","v":0},{"$f":"入力画面!E59","v":0},{"$f":"入力画面!C56","v":0},{"$f":"入力画面!G56","v":0},{"$f":"入力画面!C55","v":0},{"$f":"入力画面!C58","v":0},{"$f":"入力画面!G55","v":"2018-01-31"},{"$f":"入力画面!G55","v":"2018-01-31"},{"$f":"入力画面!C4","v":0},{"$f":"入力画面!D4","v":0},{"$f":"入力画面!F4","v":0},{"$f":"入力画面!H4","v":0},{"$f":"IF(入力画面!B9=TRUE,1,\"\")","v":""},{"$f":"IF(入力画面!B10=TRUE,1,\"\")","v":""},{"$f":"IF(入力画面!B11=TRUE,1,\"\")","v":""},{"$f":"IF(入力画面!B12=TRUE,1,\"\")","v":""},{"$f":"IF(入力画面!B13=TRUE,1,\"\")","v":""},{"$f":"IF(入力画面!B8=TRUE,1,\"\")","v":""},{"$f":"IF(入力画面!B14=TRUE,1,\"\")","v":""},{"$f":"IF(入力画面!B15=TRUE,1,\"\")","v":""},{"$f":"IF(入力画面!B16=TRUE,1,\"\")","v":""},{"$f":"入力画面!B18","v":0},{"$f":"IF(入力画面!E8=TRUE,1,\"\")","v":""},{"$f":"IF(入力画面!E10=TRUE,1,\"\")","v":""},{"$f":"IF(入力画面!E11=TRUE,1,\"\")","v":""},{"$f":"IF(入力画面!E12=TRUE,1,\"\")","v":""},{"$f":"IF(入力画面!E13=TRUE,1,\"\")","v":""},{"$f":"IF(入力画面!E14=TRUE,1,\"\")","v":""},{"$f":"IF(入力画面!E15=TRUE,1,\"\")","v":""},{"$f":"IF(入力画面!E16=TRUE,1,\"\")","v":""},{"$f":"IF(入力画面!E17=TRUE,1,\"\")","v":""},{"$f":"IF(入力画面!E18=TRUE,1,\"\")","v":""},{"$f":"IF(入力画面!E19=TRUE,1,\"\")","v":""},{"$f":"IF(入力画面!E20=TRUE,1,\"\")","v":""},{"$f":"IF(入力画面!E21=TRUE,1,\"\")","v":""},{"$f":"入力画面!E23","v":0},{"$f":"IF(入力画面!I8=TRUE,1,\"\")","v":""},{"$f":"IF(入力画面!I9=TRUE,1,\"\")","v":""},{"$f":"IF(入力画面!I10=TRUE,1,\"\")","v":""},{"$f":"IF(入力画面!I11=TRUE,1,\"\")","v":""},{"$f":"IF(入力画面!I12=TRUE,1,\"\")","v":""},{"$f":"IF(入力画面!I13=TRUE,1,\"\")","v":""},{"$f":"IF(入力画面!I14=TRUE,1,\"\")","v":""},{"$f":"IF(入力画面!I15=TRUE,1,\"\")","v":""},{"$f":"IF(入力画面!I16=TRUE,1,\"\")","v":""},{"$f":"IF(入力画面!I17=TRUE,1,\"\")","v":""},{"$f":"IF(入力画面!I18=TRUE,1,\"\")","v":""},{"$f":"IF(入力画面!I19=TRUE,1,\"\")","v":""},{"$f":"IF(入力画面!I20=TRUE,1,\"\")","v":""},{"$f":"IF(入力画面!I21=TRUE,1,\"\")","v":""},{"$f":"IF(入力画面!I22=TRUE,1,\"\")","v":""},{"$f":"IF(入力画面!I23=TRUE,1,\"\")","v":""},{"$f":"IF(入力画面!I24=TRUE,1,\"\")","v":""},{"$f":"入力画面!I26","v":0},{"$f":"入力画面!B30","v":0},{"$f":"入力画面!D30","v":0},{"$f":"入力画面!E30","v":0},{"$f":"入力画面!G30","v":0},{"$f":"入力画面!I30","v":0},{"$f":"入力画面!J30","v":0},{"$f":"入力画面!B31","v":0},{"$f":"入力画面!D31","v":0},{"$f":"入力画面!E31","v":0},{"$f":"入力画面!G31","v":0},{"$f":"入力画面!I31","v":0},{"$f":"入力画面!J31","v":0},{"$f":"入力画面!B32","v":0},{"$f":"入力画面!D32","v":0},{"$f":"入力画面!E32","v":0},{"$f":"入力画面!G32","v":0},{"$f":"入力画面!I32","v":0},{"$f":"入力画面!J32","v":0},{"$f":"入力画面!B33","v":0},{"$f":"入力画面!D33","v":0},{"$f":"入力画面!E33","v":0},{"$f":"入力画面!G33","v":0},{"$f":"入力画面!I33","v":0},{"$f":"入力画面!J33","v":0},{"$f":"IF(入力画面!B36=TRUE,1,\"\")","v":""},{"$f":"IF(入力画面!B37=TRUE,1,\"\")","v":""},{"$f":"IF(入力画面!B38=TRUE,1,\"\")","v":""},{"$f":"IF(入力画面!B39=TRUE,1,\"\")","v":""},{"$f":"IF(入力画面!B40=TRUE,1,\"\")","v":""},{"$f":"IF(入力画面!B41=TRUE,1,\"\")","v":""},{"$f":"IF(入力画面!B42=TRUE,1,\"\")","v":""},{"$f":"IF(入力画面!B43=TRUE,1,\"\")","v":""},{"$f":"IF(入力画面!B44=TRUE,1,\"\")","v":""},{"$f":"IF(入力画面!B45=TRUE,1,\"\")","v":""},{"$f":"IF(入力画面!B46=TRUE,1,\"\")","v":""},{"$f":"入力画面!B48","v":0},{"$f":"入力画面!E36","v":0},{"$f":"入力画面!C51","v":0},{"$f":"入力画面!C52","v":0},{"$f":"入力画面!D53","v":0},{"$f":"入力画面!G51","v":0},{"$f":"入力画面!J51","v":0},{"$f":"入力画面!G52","v":0},{"$f":"入力画面!J52","v":0},{"$f":"入力画面!G57","v":0}]

{"sheet":"保存画面","index":3,"n_rows":1,"n_cols":100,"rows_kept":1,"cut":false,"hidden":false,"merged":[]}
["施設名","都道府県","住所","電話番号","FAX番号","氏名","e-mail","初回登録日","最終更新日","年齢：年","年齢：月","性別","外来／入院","関与した薬剤師の担当：外来調剤","関与した薬剤師の担当：注射せん調剤","関与した薬剤師の担当：医薬品情報","関与した薬剤師の担当：無菌製剤","関与した薬剤師の担当：入院調剤","関与した薬剤師の担当：薬剤管理指導業務","関与した薬剤師の担当：製剤","関与した薬剤師の担当：TDM","関与した薬剤師の担当：その他","関与した薬剤師の担当：その他（内容）","発端：医薬品情報提供による患者（家族）の訴え・相談","発端：注射せん","発端：医師からの相談","発端：患者（家族）の訴え・相談","発端：検査結果","発端：看護師からの相談","発端：薬歴","発端：TDM","発端：持参薬チェック","発端：処方せん","発端：カルテ等情報","発端：患者の症状その他","発端：その他 ","発端：その他（内用）","原因：重大な副作用","原因：禁忌","原因：同種同効薬重複","原因：併用注意","原因：特殊（腎機能低下等）な状況","原因：処方もれ","原因：その他の副作用","原因：慎重投与","原因：過量投与","原因：配合禁忌","原因：ノンコンプライアンス","原因：中毒","原因：重複投与","原因：併用禁忌","原因：配合注意","原因：誤転記・誤処方","原因：その他","原因：その他（内用）","薬剤名1（薬学的ケア前）","投与量1（薬学的ケア前）","用法1（薬学的ケア前）","薬剤名1（薬学的ケア後）","投与量1（薬学的ケア後）","用法1（薬学的ケア後）","薬剤名2（薬学的ケア前）","投与量2（薬学的ケア前）","用法2（薬学的ケア前）","薬剤名2（薬学的ケア後）","投与量2（薬学的ケア後）","用法2（薬学的ケア後）","薬剤名3（薬学的ケア前）","投与量3（薬学的ケア前）","用法3（薬学的ケア前）","薬剤名3（薬学的ケア後）","投与量3（薬学的ケア後）","用法3（薬学的ケア後）","薬剤名4（薬学的ケア前）","投与量4（薬学的ケア前）","用法4（薬学的ケア前）","薬剤名4（薬学的ケア後）","投与量4（薬学的ケア後）","用法4（薬学的ケア後）","薬学的ケアの種類：薬剤中止","薬学的ケアの種類：薬剤減量","薬学的ケアの種類：薬剤追加","薬学的ケアの種類：調剤法変更","薬学的ケアの種類：投与法変更","薬学的ケアの種類：薬剤変更","薬学的ケアの種類：薬剤増量","薬学的ケアの種類：服薬指導","薬学的ケアの種類：用法変更","薬学的ケアの種類：剤形変更","薬学的ケアの種類：その他","薬学的ケアの種類：その他（内用）","報告者コメント","身長","体重","治療中の疾患","腎機能障害","副作用歴","肝機能障害","アレルギー歴","備考・追加など"]